bitfinex-derivatives/quotes_SOLF0:USTF0_20241105
["timestamp","ask_amount","ask_price","bid_price","bid_amount"]
[1730809453284,7.57358319,161.98,161.92,3.089]
[1730809453477,7.57358319,161.98,161.92,7.57358319]
[1730809453678,10.66158319,161.98,161.92,7.57358319]
[1730809453882,7.57358319,161.98,161.93,3.0888]
[1730809454179,7.57358319,161.98,161.94,7.57358319]
[1730809454483,3.0879,161.98,161.94,10.66218319]
[1730809455278,7.57358319,161.99,161.94,7.57358319]
[1730809455487,3.0878,161.99,161.95,3.0884]
[1730809455684,10.66138319,161.99,161.95,3.0884]
[1730809456184,7.57358319,161.99,161.96,3.0882]
[1730809456395,8.93858319,162.02,161.97,7.57358319]
[1730809457078,7.57358319,162.02,161.97,7.57358319]
[1730809457774,3.0874,162.01,161.97,10.66158319]
[1730809457976,3.0874,162.01,161.97,7.57358319]
[1730809458184,7.57358319,162.02,161.97,7.57358319]
[1730809458383,10.66068319,162.02,161.99,3.0876]
[1730809458883,2.78,162.05,161.98,7.57358319]
[1730809458884,7.57358319,162.04,161.98,7.57358319]
[1730809459087,10.66038319,162.04,162.0,3.0873]
[1730809459479,7.57358319,162.04,162.0,3.0873]
[1730809459783,10.66038319,162.04,162.0,3.0874]
[1730809459981,7.57358319,162.04,162.0,3.0874]
[1730809460376,3.0871,162.02,161.98,10.66118319]
[1730809460688,3.0871,162.02,161.98,7.57358319]
[1730809460984,7.57358319,162.04,161.98,10.35358319]
[1730809461185,7.57358319,162.01,161.98,2.78]
[1730809462586,7.57358319,162.04,161.98,10.35358319]
[1730809463081,1.4069,162.07,162.0,7.57358319]
[1730809463279,7.57358319,162.02,161.98,7.57358319]
[1730809464185,1.4069,162.07,161.98,7.57358319]
[1730809464186,7.57358319,162.04,161.98,7.57358319]
[1730809465486,1.4069,162.07,161.97,2.78]
[1730809465487,1.4069,162.07,161.99,7.57358319]
[1730809465683,7.57358319,162.05,161.99,7.57358319]
[1730809466086,4.4932,162.07,162.01,7.57358319]
[1730809466281,7.57358319,162.06,162.01,7.57358319]
[1730809466688,7.57358319,162.06,162.03,3.0868]
[1730809466991,7.57358319,162.06,162.01,7.57358319]
[1730809467387,1.4069,162.07,161.99,11.85035942]
[1730809468189,4.493,162.07,162.03,3.0868]
[1730809468783,1.4069,162.07,162.02,3.0869]
[1730809468988,1.4069,162.07,162.01,2.78]
[1730809469586,14.63035942,162.1,162.01,2.78]
[1730809470289,14.63035942,162.1,162.02,3.087]
[1730809470485,14.63035942,162.1,162.01,2.78]
[1730809470893,3.0859,162.08,162.04,3.0867]
[1730809471196,14.63035942,162.1,162.01,2.78]
[1730809471395,3.0859,162.09,162.01,2.78]
[1730809471784,11.85035942,162.1,162.01,2.78]
[1730809473196,11.85035942,162.1,162.04,3.0866]
[1730809473493,2.78,162.11,162.01,2.78]
[1730809473995,3.0858,162.09,162.06,3.0863]
[1730809474195,14.63035942,162.12,162.02,11.85035942]
[1730809474500,2.78,162.12,162.04,11.85035942]
[1730809474703,3.0854,162.11,162.07,3.086]
[1730809474894,11.85035942,162.14,162.05,2.78]
[1730809475091,1.3662,162.16,162.06,13.20185942]
[1730809475286,4.1462,162.16,162.06,13.20185942]
[1730809475889,15.95215942,162.17,162.06,13.20185942]
[1730809476091,1.3218,162.17,162.08,11.85035942]
[1730809476406,1.3218,162.17,162.13,3.0849]
[1730809476407,4.4061,162.17,162.13,3.0849]
[1730809476702,11.85035942,162.19,162.1,11.85035942]
[1730809476889,11.85035942,162.19,162.11,2.78]
[1730809477094,14.93435942,162.19,162.13,3.0849]
[1730809477290,14.93435942,162.19,162.11,2.78]
[1730809477291,11.85035942,162.19,162.11,2.78]
[1730809477797,3.0839,162.19,162.15,3.0845]
[1730809478599,3.0837,162.2,162.16,3.0843]
[1730809478899,1.3958,162.22,162.15,14.63035942]
[1730809479098,1.3958,162.22,162.16,2.78]
[1730809479299,1.3958,162.22,162.19,3.0838]
[1730809479501,13.25375942,162.24,162.16,2.78]
[1730809479502,11.85035942,162.24,162.16,2.78]
[1730809480204,3.0831,162.23,162.16,2.78]
[1730809480500,16.04825942,162.26,162.16,2.78]
[1730809481398,13.22825942,162.26,162.16,2.78]
[1730809481598,13.22825942,162.26,162.17,11.85035942]
[1730809482096,3.0826,162.26,162.22,3.0832]
[1730809482404,11.85035942,162.28,162.2,2.82]
[1730809482793,3.0827,162.25,162.21,3.0833]
[1730809482994,11.85035942,162.28,162.2,2.82]
[1730809483996,11.85035942,162.3,162.2,4.1956]
[1730809484404,14.93225942,162.3,162.25,3.0826]
[1730809484793,11.85035942,162.3,162.21,11.85035942]
[1730809484992,14.93215942,162.3,162.21,11.85035942]
[1730809485491,14.93215942,162.3,162.23,3.0829]
[1730809485492,3.0818,162.3,162.23,3.0829]
[1730809485694,3.0816,162.31,162.24,2.82]
[1730809486297,3.0818,162.3,162.24,2.82]
[1730809486707,1.3765,162.32,162.24,2.82]
[1730809487003,1.3765,162.32,162.29,3.0819]
[1730809487199,1.3765,162.32,162.24,2.82]
[1730809487606,1.3187,162.38,162.28,11.85035942]
[1730809487807,2.82,162.37,162.28,14.67035942]
[1730809488011,16.24925942,162.38,162.28,14.67035942]
[1730809488203,13.16905942,162.38,162.28,14.67035942]
[1730809488403,13.16905942,162.38,162.31,3.0814]
[1730809488606,3.0806,162.36,162.28,14.67035942]
[1730809489403,16.24935942,162.38,162.34,3.0809]
[1730809489707,16.24935942,162.38,162.29,11.85035942]
[1730809489708,1.3187,162.38,162.29,11.85035942]
[1730809489905,1.3187,162.38,162.29,13.16505942]
[1730809490103,1.3187,162.38,162.32,11.85035942]
[1730809490411,5.8997,162.41,162.36,3.0804]
[1730809490604,3.0797,162.41,162.32,14.67035942]
[1730809491113,11.85035942,162.42,162.33,11.85035942]
[1730809491306,11.85035942,162.42,162.34,2.82]
[1730809491498,1.3138,162.41,162.34,2.82]
[1730809491699,4.3936,162.41,162.34,2.82]
[1730809491906,1.3138,162.41,162.33,14.67035942]
[1730809492107,3.0802,162.39,162.34,3.0808]
[1730809492513,16.03355942,162.4,162.31,2.82]
[1730809492715,17.34275942,162.4,162.31,2.82]
[1730809493012,17.34275942,162.4,162.31,14.67035942]
[1730809493214,3.0803,162.38,162.34,3.0809]
[1730809493611,17.34275942,162.4,162.34,3.0809]
[1730809493917,20.42275942,162.4,162.36,3.0805]
[1730809494213,17.34275942,162.4,162.31,14.67035942]
[1730809494522,1.3632,162.4,162.31,14.67035942]
[1730809494811,1.3632,162.4,162.37,3.0803]
[1730809495402,1.3632,162.4,162.34,11.85035942]
[1730809495605,1.3138,162.41,162.34,11.85035942]
[1730809495802,1.3138,162.41,162.35,2.82]
[1730809496214,1.3138,162.41,162.37,3.0802]
[1730809496415,1.3138,162.41,162.35,2.82]
[1730809496812,1.3138,162.41,162.38,3.0801]
[1730809497211,1.3138,162.41,162.35,2.82]
[1730809497409,1.3138,162.41,162.38,3.0802]
[1730809498114,11.85035942,162.44,162.36,11.85035942]
[1730809498313,11.85035942,162.44,162.39,3.0799]
[1730809498713,3.0794,162.43,162.39,3.0799]
[1730809498911,13.17675942,162.46,162.36,11.85035942]
[1730809499113,13.17675942,162.46,162.4,3.0797]
[1730809499312,3.0791,162.45,162.36,11.85035942]
[1730809499921,16.25555942,162.46,162.4,3.0798]
[1730809500118,11.85035942,162.44,162.36,2.82]
[1730809500814,3.0796,162.42,162.38,3.0801]
[1730809501013,11.85035942,162.44,162.36,2.82]
[1730809501415,3.0794,162.43,162.38,3.0801]
[1730809501607,3.0794,162.43,162.36,2.82]
[1730809501608,11.85035942,162.44,162.36,2.82]
[1730809501813,13.17675942,162.46,162.36,2.82]
[1730809502021,3.0791,162.44,162.4,3.0797]
[1730809502609,13.17675942,162.46,162.43,3.0792]
[1730809502610,15.99675942,162.46,162.43,3.0792]
[1730809502814,15.99675942,162.46,162.38,11.85035942]
[1730809503119,4.1464,162.46,162.38,11.85035942]
[1730809503321,4.4052,162.46,162.4,3.0798]
[1730809503520,1.3264,162.46,162.4,3.0798]
[1730809503915,1.3264,162.46,162.33,1.3718]
[1730809503916,11.85035942,162.43,162.3,74.58726]
[1730809504123,11.85035942,162.41,162.31,2.82]
[1730809504615,3.08,162.39,162.35,3.0807]
[1730809504816,11.85035942,162.41,162.31,2.82]
[1730809506120,3.08,162.4,162.31,2.82]
[1730809506523,14.67035942,162.44,162.32,11.85035942]
[1730809507926,3.0796,162.42,162.35,3.0807]
[1730809508126,3.0796,162.42,162.35,2.82]
[1730809508516,3.0798,162.41,162.37,3.0802]
[1730809510725,11.85035942,162.39,162.3,74.58726]
[1730809511028,11.85035942,162.37,162.3,77.44726]
[1730809511431,11.85035942,162.37,162.31,3.0814]
[1730809511626,11.85035942,162.37,162.3,77.44726]
[1730809511828,3.0807,162.36,162.32,3.0812]
[1730809514829,11.85035942,162.37,162.3,74.58726]
[1730809515042,3.0816,162.31,162.3,74.58726]
[1730809515537,14.93175942,162.32,162.3,74.58726]
[1730809522245,3.081,162.34,162.3,77.66886]
[1730809522439,1.3533,162.38,162.3,74.58726]
[1730809522641,16.06365942,162.38,162.3,74.58726]
[1730809522947,16.06365942,162.38,162.32,3.0813]
[1730809523540,3.0807,162.36,162.32,3.0813]
[1730809524051,14.93105942,162.36,162.32,3.0813]
[1730809525245,4.2133,162.38,162.36,3.0805]
[1730809525449,11.85035942,162.37,162.3,74.58726]
[1730809525842,3.0807,162.36,162.33,3.081]
[1730809526549,14.93095942,162.37,162.34,3.0809]
[1730809526946,11.85035942,162.37,162.3,74.58726]
[1730809527246,1.3533,162.38,162.31,2.86]
[1730809528050,4.4336,162.38,162.31,2.86]
[1730809528648,3.0803,162.38,162.31,2.86]
[1730809529047,2.86,162.4,162.31,2.86]
[1730809529352,5.94,162.4,162.32,1.3118]
[1730809529752,5.94,162.4,162.36,3.0805]
[1730809530056,3.08,162.4,162.32,1.3118]
[1730809530442,11.85035942,162.41,162.32,13.16215942]
[1730809530943,11.85035942,162.41,162.34,3.0809]
[1730809531147,14.93005942,162.41,162.32,13.16215942]
[1730809531653,14.93005942,162.41,162.37,3.0803]
[1730809533053,3.0805,162.37,162.34,3.081]
[1730809533256,11.85035942,162.37,162.31,2.86]
[1730809533463,11.85035942,162.37,162.3,74.58726]
[1730809533758,4.247,162.38,162.3,77.66886]
[1730809533759,3.0811,162.34,162.3,77.66886]
[1730809533949,3.0811,162.34,162.3,74.58726]
[1730809534554,11.85035942,162.35,162.3,74.58726]
[1730809534756,3.0814,162.32,162.3,74.58726]
[1730809535257,11.85035942,162.33,162.3,74.58726]
[1730809535560,14.93155942,162.33,162.3,74.58726]
[1730809536656,3.0815,162.32,162.3,74.58726]
[1730809539166,14.93155942,162.33,162.3,74.58726]
[1730809546360,11.85035942,162.33,162.3,74.58726]
[1730809546568,11.85035942,162.35,162.3,74.58726]
[1730809547873,3.0813,162.33,162.3,74.58726]
[1730809548473,3.0813,162.33,162.3,77.66886]
[1730809551384,7.56885435,162.32,162.31,3.0816]
[1730809551581,7.56885435,162.34,162.3,74.58726]
[1730809551976,7.56885435,162.35,162.33,3.0812]
[1730809552376,7.56885435,162.35,162.3,82.15611435]
[1730809552582,10.64965435,162.35,162.32,3.0812]
[1730809553283,3.0808,162.35,162.32,3.0812]
[1730809553786,3.0812,162.33,162.3,77.66886]
[1730809554281,11.83851124,162.35,162.3,74.58726]
[1730809554483,3.0811,162.34,162.31,3.0815]
[1730809556277,3.0816,162.31,162.3,74.58726]
[1730809557181,11.83851124,162.32,162.3,74.58726]
[1730809557383,14.92001124,162.32,162.3,74.58726]
[1730809559780,3.0812,162.33,162.3,74.58726]
[1730809561391,3.0812,162.33,162.3,77.66886]
[1730809564485,3.0812,162.33,162.31,3.0815]
[1730809564683,11.83851124,162.35,162.3,74.58726]
[1730809565187,11.83851124,162.35,162.31,3.0815]
[1730809565594,3.0812,162.33,162.31,3.0815]
[1730809565990,3.0812,162.33,162.3,77.66896]
[1730809566189,3.0816,162.31,162.3,74.58726]
[1730809571393,11.83851124,162.35,162.3,74.58726]
[1730809572095,3.081,162.34,162.31,3.0814]
[1730809573298,7.57725408,162.33,162.31,3.0814]
[1730809573903,7.57725408,162.32,162.3,74.58726]
[1730809574105,7.57725408,162.32,162.31,3.0815]
[1730809574306,7.57725408,162.32,162.3,74.58726]
[1730809574513,7.57725408,162.31,162.3,74.58726]
[1730809576194,7.57725408,162.32,162.3,77.66896]
[1730809576406,7.57725408,162.34,162.3,74.58726]
[1730809577006,7.57725408,162.34,162.32,3.0812]
[1730809579001,7.57725408,162.34,162.3,74.58726]
[1730809579002,3.0816,162.31,162.3,74.58726]
[1730809579208,10.65885408,162.31,162.3,74.58726]
[1730809579411,10.65885408,162.31,162.3,9.10402253]
[1730809581102,14.58950603,162.31,162.3,9.10402253]
[1730809581301,15.76567009,162.31,162.26,3.0824]
[1730809581504,1.3624,162.35,162.21,3.0833]
[1730809581505,11.83501814,162.28,162.21,3.0833]
[1730809581710,11.83501814,162.24,162.21,3.0833]
[1730809581909,11.83501814,162.26,162.2,2.744]
[1730809582108,2.8,162.29,162.2,2.744]
[1730809582109,3.93006735,162.25,162.2,2.744]
[1730809582312,3.93006735,162.24,162.2,2.744]
[1730809582506,14.63501814,162.29,162.2,2.744]
[1730809582708,7.01108978,162.28,162.24,3.0827]
[1730809582902,3.92898978,162.27,162.24,3.0827]
[1730809583105,14.63501814,162.29,162.24,3.0827]
[1730809583106,3.92898978,162.26,162.24,3.0827]
[1730809583306,14.63501814,162.29,162.24,3.0827]
[1730809583615,3.9290526,162.28,162.24,3.0827]
[1730809583805,3.9290526,162.27,162.24,3.0827]
[1730809584005,3.9290526,162.26,162.2,2.744]
[1730809584304,17.71701814,162.29,162.2,2.744]
[1730809584506,3.83262364,162.28,162.2,2.744]
[1730809584704,3.83262364,162.27,162.25,3.0825]
[1730809584909,17.71701814,162.29,162.25,3.0825]
[1730809585105,3.0822,162.28,162.25,3.0825]
[1730809585414,3.83264166,162.27,162.25,3.0825]
[1730809585708,3.0822,162.28,162.25,3.0825]
[1730809585906,3.83180434,162.27,162.25,3.0825]
[1730809586102,3.0822,162.28,162.25,3.0825]
[1730809586310,3.8317746,162.27,162.25,3.0825]
[1730809586609,3.0822,162.28,162.25,3.0825]
[1730809586803,3.83126558,162.27,162.25,3.0825]
[1730809587007,3.0822,162.28,162.25,3.0825]
[1730809587410,3.83126558,162.27,162.25,3.0825]
[1730809587611,3.0822,162.28,162.25,3.0825]
[1730809587807,3.83087926,162.27,162.25,3.0825]
[1730809588010,3.0822,162.28,162.25,3.0825]
[1730809588214,3.83087936,162.27,162.25,3.0825]
[1730809588514,3.0822,162.28,162.25,3.0825]
[1730809588710,3.83047393,162.27,162.25,3.0825]
[1730809589014,3.0822,162.28,162.25,3.0825]
[1730809591613,11.83501814,162.29,162.27,3.0823]
[1730809591810,11.83501814,162.31,162.22,2.8]
[1730809592015,3.8294413,162.3,162.22,2.8]
[1730809592213,3.8294413,162.29,162.28,3.0821]
[1730809592716,3.0815,162.32,162.23,11.83501814]
[1730809592717,3.8294413,162.31,162.23,11.83501814]
[1730809592917,3.8294413,162.29,162.23,11.83501814]
[1730809593119,3.8294413,162.3,162.28,3.0821]
[1730809593413,3.8294413,162.29,162.28,3.0821]
[1730809593814,3.8294413,162.3,162.28,3.0821]
[1730809594015,3.8294413,162.29,162.28,3.0821]
[1730809594617,3.8294413,162.3,162.23,11.83501814]
[1730809594812,11.83501814,162.35,162.25,11.83501814]
[1730809595016,3.82992266,162.34,162.26,5.5426]
[1730809595322,3.82992266,162.33,162.26,5.5426]
[1730809595522,3.82992266,162.32,162.27,3.0822]
[1730809595720,3.82992266,162.31,162.26,5.5426]
[1730809595920,3.0811,162.34,162.26,5.5426]
[1730809596120,3.83072373,162.33,162.3,3.0816]
[1730809596319,3.0811,162.34,162.3,3.0816]
[1730809596320,3.83072373,162.32,162.3,3.0816]
[1730809596518,3.0811,162.34,162.3,3.0816]
[1730809596713,3.83110709,162.33,162.32,3.0812]
[1730809598019,14.91581814,162.35,162.32,3.0812]
[1730809598615,14.91581814,162.35,162.29,2.8]
[1730809598818,14.91581814,162.35,162.33,3.0812]
[1730809600221,3.0808,162.35,162.33,3.0812]
[1730809600619,3.0808,162.35,162.32,3.0812]
[1730809600826,3.0808,162.36,162.28,2.8]
[1730809601423,3.0808,162.36,162.33,3.081]
[1730809603430,7.57640307,162.35,162.33,3.081]
[1730809605824,7.57640307,162.35,162.29,7.57640307]
[1730809606027,7.57640307,162.33,162.32,3.0814]
[1730809611727,3.0807,162.36,162.29,10.43640307]
[1730809611939,7.57640307,162.34,162.29,2.86]
[1730809612235,7.57640307,162.34,162.29,10.43640307]
[1730809612738,7.57640307,162.34,162.33,3.0812]
[1730809613637,7.57640307,162.34,162.3,2.86]
[1730809613638,7.57640307,162.38,162.32,7.57640307]
[1730809613842,299.56806,162.39,162.35,7.57640307]
[1730809614044,299.56806,162.39,162.33,8.96980307]
[1730809614236,299.56806,162.39,162.37,3.0803]
[1730809614544,299.56806,162.39,162.34,2.86]
[1730809615338,299.56806,162.39,162.38,3.0802]
[1730809617941,297.89926,162.39,162.38,10.65660307]
[1730809618148,297.89926,162.39,162.38,13.51660307]
[1730809618962,291.55526,162.39,162.38,13.51660307]
[1730809619145,287.35276,162.39,162.38,13.51660307]
[1730809620343,217.46922253,162.39,162.38,13.51660307]
[1730809620748,210.90662253,162.39,162.38,13.51660307]
[1730809621145,193.33751181,162.39,162.38,13.51660307]
[1730809621347,193.33751181,162.39,162.38,10.65660307]
[1730809621650,193.33751181,162.39,162.38,13.51660307]
[1730809623048,142.10788506,162.39,162.38,13.51660307]
[1730809623249,137.49208506,162.39,162.38,13.51660307]
[1730809623446,123.23847434,162.39,162.38,13.51660307]
[1730809623847,108.98486362,162.39,162.38,13.51660307]
[1730809624048,84.94991548,162.39,162.38,13.51660307]
[1730809624249,65.84001548,162.39,162.38,13.51660307]
[1730809624556,8.96840307,162.54,162.51,3.0776]
[1730809624751,1.392,162.54,162.5,10.43640307]
[1730809624949,1.392,162.54,162.5,7.57640307]
[1730809625146,7.57640307,162.55,162.5,7.57640307]
[1730809625353,7.57640307,162.55,162.5,10.43640307]
[1730809625546,7.57640307,162.55,162.5,3.0778]
[1730809625751,7.57640307,162.53,162.5,5.9378]
[1730809625950,7.57640307,162.53,162.5,2.86]
[1730809626155,7.57640307,162.53,162.52,3.0776]
[1730809626457,7.57640307,162.55,162.52,3.0776]
[1730809626854,7.57640307,162.55,162.53,3.0773]
[1730809627053,7.57640307,162.57,162.53,3.0773]
[1730809627764,7.57640307,162.57,162.54,3.0771]
[1730809628751,7.57640307,162.57,162.54,3.0772]
[1730809628946,1.3669,162.58,162.42,3.07443752]
[1730809628947,7.57640307,162.56,162.42,3.07443752]
[1730809629155,7.57640307,162.51,162.43,1.13102199]
[1730809629352,7.57640307,162.51,162.44,2.86]
[1730809629657,7.57640307,162.51,162.47,7.57640307]
[1730809629854,7.57640307,162.51,162.48,3.0782]
[1730809630355,7.57640307,162.52,162.47,7.57640307]
[1730809630556,7.57640307,162.54,162.48,10.43640307]
[1730809630756,7.57640307,162.55,162.49,7.57640307]
[1730809631261,1.3669,162.58,162.48,14.68197233]
[1730809631457,13.18887233,162.58,162.48,14.68197233]
[1730809632058,3.0766,162.57,162.53,3.0774]
[1730809632369,13.18887233,162.58,162.53,3.0774]
[1730809632558,16.26537233,162.58,162.53,3.0774]
[1730809632758,16.26537233,162.58,162.51,2.88]
[1730809632759,13.18887233,162.58,162.51,2.88]
[1730809632959,13.18887233,162.58,162.5,2.88]
[1730809633165,3.0768,162.57,162.52,3.0774]
[1730809634058,3.0768,162.57,162.52,3.0776]
[1730809634260,3.0768,162.57,162.5,2.88]
[1730809634569,3.0768,162.57,162.47,11.82197233]
[1730809634570,3.0768,162.57,162.51,2.88]
[1730809634760,3.077,162.55,162.5,2.88]
[1730809634967,11.82197233,162.56,162.5,2.88]
[1730809635265,11.82197233,162.56,162.52,3.0774]
[1730809635864,11.82197233,162.56,162.5,2.88]
[1730809636959,11.82197233,162.56,162.52,3.0774]
[1730809637359,11.82197233,162.56,162.5,2.88]
[1730809637966,16.26537233,162.58,162.53,3.0773]
[1730809638568,1.3669,162.58,162.5,2.88]
[1730809638962,1.3669,162.58,162.54,3.077]
[1730809639265,13.18887233,162.58,162.5,2.88]
[1730809640365,1.3669,162.58,162.55,3.0768]
[1730809640666,13.18887233,162.58,162.5,2.88]
[1730809640865,13.18887233,162.58,162.52,3.0774]
[1730809641167,3.0767,162.57,162.5,2.88]
[1730809641466,3.0767,162.57,162.52,3.0774]
[1730809641859,13.18887233,162.58,162.5,2.88]
[1730809642564,3.0768,162.57,162.53,3.0774]
[1730809642769,13.18887233,162.58,162.53,3.0774]
[1730809643063,16.26547233,162.58,162.53,3.0774]
[1730809643568,3.0768,162.56,162.52,3.0775]
[1730809643767,13.18887233,162.58,162.52,3.0775]
[1730809644169,3.0768,162.57,162.52,3.0775]
[1730809644370,3.0768,162.57,162.51,2.88]
[1730809644670,16.26537233,162.58,162.51,2.88]
[1730809644971,11.82197233,162.54,162.45,11.82197233]
[1730809645157,1.3185,162.53,162.49,3.0781]
[1730809645362,11.82197233,162.5,162.38,2.82158192]
[1730809645562,11.82197233,162.48,162.4,3.0797]
[1730809645767,11.82197233,162.48,162.4,2.88]
[1730809646165,3.0788,162.46,162.4,2.88]
[1730809646367,11.82197233,162.48,162.4,2.88]
[1730809646668,11.82197233,162.48,162.44,3.0789]
[1730809647259,11.82197233,162.48,162.45,3.0789]
[1730809647465,11.82197233,162.48,162.42,2.88]
[1730809647859,1.2945,162.49,162.42,2.88]
[1730809648871,1.2945,162.49,162.44,11.82197233]
[1730809649071,2.6435,162.53,162.46,11.82197233]
[1730809649269,2.6435,162.53,162.5,3.0778]
[1730809649974,2.6435,162.53,162.47,2.88]
[1730809650967,2.6435,162.53,162.51,3.0777]
[1730809651171,2.6435,162.53,162.47,2.88]
[1730809651565,1.3185,162.53,162.47,2.88]
[1730809651768,1.3253,162.55,162.47,2.88]
[1730809652073,1.3253,162.55,162.48,11.82197233]
[1730809652469,1.3253,162.55,162.5,3.0779]
[1730809652670,1.3253,162.55,162.42,8.46474577]
[1730809652671,1.3253,162.55,162.51,2.88]
[1730809652969,1.3253,162.55,162.5,2.88]
[1730809653370,1.3253,162.55,162.46,11.82197233]
[1730809653576,1.3253,162.55,162.53,3.0773]
[1730809655972,1.3253,162.55,162.54,3.0772]
[1730809657068,1.278,162.59,162.51,2.88]
[1730809657273,1.278,162.59,162.56,3.0767]
[1730809657975,1.278,162.59,162.55,2.88]
[1730809658369,11.82197233,162.58,162.55,2.88]
[1730809658980,11.82197233,162.61,162.55,2.88]
[1730809659285,13.22187233,162.61,162.57,3.0766]
[1730809659575,13.22187233,162.61,162.55,2.88]
[1730809659876,1.3999,162.61,162.55,2.88]
[1730809662576,2.6551,162.62,162.55,14.70197233]
[1730809663481,2.6551,162.62,162.6,3.076]
[1730809663773,2.6551,162.62,162.59,2.94]
[1730809664176,2.6551,162.62,162.59,6.0161]
[1730809664473,2.6551,162.62,162.59,2.94]
[1730809664779,2.6551,162.62,162.6,3.0759]
[1730809665274,11.82197233,162.65,162.61,3.0758]
[1730809665479,14.40327233,162.65,162.61,3.0758]
[1730809665683,14.40327233,162.65,162.55,11.82197233]
[1730809665878,2.5813,162.65,162.58,11.82197233]
[1730809666583,2.5813,162.65,162.63,3.0755]
[1730809666782,11.82197233,162.73,162.63,11.82197233]
[1730809666987,2.5813,162.7,162.65,11.82197233]
[1730809667180,2.5813,162.7,162.67,3.0746]
[1730809667884,2.5813,162.7,162.66,2.94]
[1730809668187,2.5813,162.7,162.67,3.0747]
[1730809668383,2.5813,162.7,162.66,2.94]
[1730809668576,2.5813,162.7,162.68,3.0745]
[1730809668769,2.5813,162.7,162.66,2.94]
[1730809668770,1.3094,162.72,162.66,2.94]
[1730809669177,1.3094,162.72,162.68,3.0744]
[1730809669685,2.6679,162.71,162.69,3.0742]
[1730809669979,2.6679,162.71,162.67,14.76197233]
[1730809670184,2.6679,162.71,162.67,2.94]
[1730809670684,2.6679,162.71,162.69,3.0742]
[1730809670885,2.6679,162.71,162.65,11.82197233]
[1730809671081,3.0745,162.69,162.65,2.94]
[1730809671287,3.0745,162.69,162.64,3.0753]
[1730809671288,11.82197233,162.68,162.62,2.94]
[1730809671983,11.82197233,162.68,162.58,11.82197233]
[1730809672184,11.82197233,162.68,162.59,2.94]
[1730809672382,17.42987233,162.71,162.61,11.82197233]
[1730809672581,3.0745,162.69,162.63,3.0755]
[1730809672775,17.42987233,162.71,162.62,2.94]
[1730809673179,14.48987233,162.71,162.62,2.94]
[1730809673683,3.0743,162.7,162.64,3.0752]
[1730809674189,3.0743,162.7,162.62,2.94]
[1730809674385,3.0743,162.7,162.64,3.0752]
[1730809674977,3.0743,162.7,162.62,2.94]
[1730809675282,3.0743,162.7,162.64,3.0752]
[1730809675885,2.6679,162.71,162.63,11.82197233]
[1730809676485,2.6679,162.71,162.67,3.0746]
[1730809676882,2.6679,162.71,162.63,11.82197233]
[1730809677088,2.6679,162.71,162.67,3.0746]
[1730809677484,2.6679,162.71,162.64,2.94]
[1730809677780,11.82197233,162.73,162.64,2.94]
[1730809678284,11.82197233,162.73,162.69,3.0742]
[1730809678585,14.47537233,162.75,162.68,2.94]
[1730809678788,14.47537233,162.75,162.71,3.0738]
[1730809678789,2.6534,162.75,162.71,3.0738]
[1730809679585,11.82197233,162.78,162.69,2.94]
[1730809679586,3.0728,162.77,162.72,3.0737]
[1730809679895,5.8088,162.77,162.69,2.94]
[1730809680284,5.8088,162.77,162.72,3.0737]
[1730809680793,5.8088,162.77,162.69,2.94]
[1730809680794,2.736,162.77,162.69,14.76197233]
[1730809680995,14.55797233,162.77,162.69,2.94]
[1730809681988,2.736,162.77,162.69,14.76197233]
[1730809682290,2.736,162.77,162.73,3.0734]
[1730809682488,14.55797233,162.77,162.74,2.94]
[1730809683285,11.82197233,162.77,162.68,11.82197233]
[1730809683485,11.82197233,162.75,162.66,11.82197233]
[1730809683786,11.82197233,162.75,162.67,2.94]
[1730809683986,11.82197233,162.73,162.68,6.0144]
[1730809684183,11.82197233,162.73,162.6,44.26]
[1730809684388,11.82197233,162.68,162.63,3.0755]
[1730809684599,11.82197233,162.68,162.63,2.94]